Cogmind - Beta 11.1 @@@ ROGUE MODE // 2022.05.03 @ 01:37:05 Player: Olga Result: Self-destructed Performance ------------- Evolutions (4) 2000 Regions Visited (8) 1600 Robots Destroyed (0) 0 Value Destroyed (0) 0 Prototype IDs (2) 40 Alien Tech Used (0) 0 Bonus (2025) 2025 TOTAL SCORE: 5665 Bonus ------- Pacifist 1325 Entered Garrisons 200 Entered DSFs 500 Cogmind --------- Core Integrity 686/850 Matter 25/300 Energy 99/100 System Corruption 0% Temperature Cool (0) Movement Core (50) Location -6/Factory Parts ------- > --- POWER (1) -------- (None) > --- PROPULSION (4) --- (None) > --- UTILITY (8) ------ Improved Trap Scanner Advanced Visual Processing Unit Signal Interpreter Improved Targeting Computer > --- WEAPON (2) ------- (None) > --- INVENTORY (5) ---- Light Fission Core Advanced Terrain Scanner Advanced Terrain Scanner System Shield System Restoration Module Peak State ------------ > --- POWER ------------ Light Fission Core > --- PROPULSION ------- Improved VTOL Module Xenon Bombardment Thruster Xenon Bombardment Thruster > --- UTILITY ---------- Improved Trap Scanner Advanced Visual Processing Unit Signal Interpreter Improved Targeting Computer Improved Targeting Computer Hacking Suite > --- WEAPON ----------- (None) > --- INVENTORY -------- Light Fission Core Advanced Terrain Scanner Advanced Terrain Scanner Advanced Terrain Scanner [Rating: 35] Favorites ----------- Power Light Fission Core Engine Light Deuterium Engine Power Core Light Fission Core Propulsion Xenon Bombardment Thruster Flight Unit Xenon Bombardment Thruster Utility Improved Targeting Computer Device Improved Trap Scanner Processor Improved Targeting Computer Hackware Hacking Suite Weapon Flail Impact Weapon Flail Build | -11 -10 -9 -8 -8 -7 -7 -7 -6 ------- Run | Scr Mat Mat Mat Sto Fac DSF Gar Fac Slots Evolved 8 | . . 2 2 . 2 . . 2 Power . | . . . . . . . . . Propulsion 2 | . . . . . 1 . . 1 Utility 6 | . . 2 2 . 1 . . 1 Weapon . | . . . . . . . . . Parts Attached 34 | . 1 5 2 5 1 10 1 9 Power 5 | . . 1 . 1 1 1 . 1 Engine 2 | . . 1 . 1 . . . . Core 3 | . . . . . 1 1 . 1 Reactor . | . . . . . . . . . Propulsion 16 | . 1 2 1 2 . 7 1 2 Treads . | . . . . . . . . . Leg . | . . . . . . . . . Wheel . | . . . . . . . . . Hover . | . . . . . . . . . Flight 16 | . 1 2 1 2 . 7 1 2 Utility 12 | . . 2 1 1 . 2 . 6 Device 1 | . . . . . . . . 1 Storage . | . . . . . . . . . Processor 6 | . . 2 1 1 . . . 2 Hackware 5 | . . . . . . 2 . 3 Protection . | . . . . . . . . . Artifact . | . . . . . . . . . Weapon 1 | . . . . 1 . . . . Energy Gun . | . . . . . . . . . Energy Cannon . | . . . . . . . . . Ballistic Gun . | . . . . . . . . . Ballistic Cannon . | . . . . . . . . . Launcher . | . . . . . . . . . Special Weapon . | . . . . . . . . . Impact Weapon 1 | . . . . 1 . . . . Slashing Weapon . | . . . . . . . . . Piercing Weapon . | . . . . . . . . . Special Melee Weapon . | . . . . . . . . . Unidentified Prototypes 2 | . . 1 . 1 . . . . Parts Lost 19 | . . . . 4 . 7 3 5 Power 2 | . . . . 1 . . 1 . Propulsion 11 | . . . . 2 . 4 2 3 Utility 5 | . . . . 1 . 2 . 2 Weapon 1 | . . . . . . 1 . . Highest Loss Streak 7 | . . . . 4 . 7 3 5 To Critical Strikes . | . . . . . . . . . Average Slot Usage (%) 49 | . 11 38 48 55 53 47 41 58 Engine 2 | . . 8 9 6 . . . . Core 3 | . . . . . 7 3 6 4 Flight 17 | . 11 19 18 17 15 17 19 17 Device 1 | . . . . . . . . 4 Processor 20 | . . 11 21 22 23 23 15 25 Hackware 1 | . . . . . . 1 . 4 Impact Weapon 1 | . . . . 8 7 1 . . Naked Turns 13 | . 13 . . . . . . . Heaviest Build 10 | . . 5 5 10 10 8 6 10 Greatest Support 17 | 3 4 9 10 10 10 17 17 17 Greatest Overweight (x) . | . . . . . . . . . Average Overweight (x) . | . . . . . . . . . Largest Inventory Capacity 5 | 5 5 5 5 5 5 5 5 5 Average Capacity 5 | 5 5 5 5 5 5 5 5 5 Most Carried 5 | . . . 1 2 1 5 5 5 Average Carried 2 | . . . . . 1 4 5 4 Final Capacity 5 | 5 5 5 5 5 5 5 5 5 Final Carried 5 | . . . 1 1 1 5 5 5 Class Distribution -------------------- 74% | Sprinter 25% | Mutant Dominant Class ---------------- Mutant | -10/Materials Mutant | -9/Materials Mutant | -8/Materials Sprinter | -8/Storage Sprinter | -7/Factory Sprinter | -7/DSF Sprinter | -7/Garrison Sprinter | -6/Factory Resources | -11 -10 -9 -8 -8 -7 -7 -7 -6 ----------- Run | Scr Mat Mat Mat Sto Fac DSF Gar Fac Matter Collected 200 | 118 . . . . . . . 82 Remotely . | . . . . . . . . . Salvage Created . | . . . . . . . . . Parts . | . . . . . . . . . Haulers Intercepted . | . . . . . . . . . Recyclers Shooed . | . . . . . . . . . Parts Field Recycled . | . . . . . . . . . Retrieved Matter . | . . . . . . . . . Parts Self-Destructed . | . . . . . . . . . Prevented . | . . . . . . . . . Kills | -11 -10 -9 -8 -8 -7 -7 -7 -6 ------- Run | Scr Mat Mat Mat Sto Fac DSF Gar Fac Combat Hostiles Destroyed . | . . . . . . . . . Classes Destroyed . | . . . . . . . . . Best Kill Streak . | . . . . . . . . . Combat Bots Only . | . . . . . . . . . Max Kills in Single Turn . | . . . . . . . . . Gunslinging . | . . . . . . . . . Exploded . | . . . . . . . . . Melee . | . . . . . . . . . Uniques/NPCs Destroyed . | . . . . . . . . . Combat | -11 -10 -9 -8 -8 -7 -7 -7 -6 -------- Run | Scr Mat Mat Mat Sto Fac DSF Gar Fac Damage Taken 1724 | . 91 14 89 306 . 681 198 345 Core 1006 | . 74 14 68 136 . 480 70 164 Absorbed by Shields 34 | . . . . . . . 34 . Core Remaining (%) 69 | 100 70 96 . 62 . . 21 . Volleys Fired . | . . . . . . . . . Largest . | . . . . . . . . . Hottest . | . . . . . . . . . Shots Fired . | . . . . . . . . . Gun . | . . . . . . . . . Cannon . | . . . . . . . . . Launcher . | . . . . . . . . . Special . | . . . . . . . . . Kinetic . | . . . . . . . . . Thermal . | . . . . . . . . . Explosive . | . . . . . . . . . Electromagnetic . | . . . . . . . . . Robot Hit Streak . | . . . . . . . . . Robot Miss Streak . | . . . . . . . . . Penetration Max . | . . . . . . . . . Secondary Targets . | . . . . . . . . . Shots Hit Robots . | . . . . . . . . . Core Hits . | . . . . . . . . . Critical Kills . | . . . . . . . . . Critical Parts Destroyed . | . . . . . . . . . Critical Strikes . | . . . . . . . . . Melee Attacks . | . . . . . . . . . Impact . | . . . . . . . . . Slashing . | . . . . . . . . . Piercing . | . . . . . . . . . Sneak Attacks . | . . . . . . . . . Combat Hostiles . | . . . . . . . . . Follow-up Attacks . | . . . . . . . . . Damage Inflicted 8 | . . . 8 . . . . . Guns . | . . . . . . . . . Cannons . | . . . . . . . . . Explosions . | . . . . . . . . . Melee . | . . . . . . . . . Ramming 8 | . . . 8 . . . . . Kinetic . | . . . . . . . . . Thermal . | . . . . . . . . . Explosive . | . . . . . . . . . Electromagnetic . | . . . . . . . . . Impact . | . . . . . . . . . Slashing . | . . . . . . . . . Piercing . | . . . . . . . . . Highest Corruption 4 | . . . . 1 2 4 4 . Average Corruption 2 | . . . . 1 2 2 4 . Corruption Purged . | . . . . . . . . . Corruption Blocked . | . . . . . . . . . Effects 7 | . . . . 1 . 3 3 . Matter Fused 4 | . . . . 1 . 1 2 . Energy Discharges 2 | . . . . . . 2 . . Data Loss (minor) 1 | . . . . . . . 1 . Overload Shots . | . . . . . . . . . Overflow Damage . | . . . . . . . . . Projectiles . | . . . . . . . . . Explosions . | . . . . . . . . . Melee . | . . . . . . . . . Knockbacks . | . . . . . . . . . Impact . | . . . . . . . . . Kinetic . | . . . . . . . . . Secondary . | . . . . . . . . . Self-Inflicted Damage 4 | . . . 4 . . . . . Shots . | . . . . . . . . . Rammed 1 | . . . 1 . . . . . Targets Rammed 1 | . . . 1 . . . . . Kicked . | . . . . . . . . . Crushed . | . . . . . . . . . Highest Temperature 302 | . . 302 . 12 . . . . Average Temperature 100 | . . 131 . 9 . . . . Received Heat Transfer 363 | . 12 9 36 243 . . . 63 Siege Activations . | . . . . . . . . . Robots Corrupted . | . . . . . . . . . Combat Hostiles . | . . . . . . . . . Parts Fried . | . . . . . . . . . Impact Corruptions . | . . . . . . . . . Robots Melted . | . . . . . . . . . Combat Hostiles . | . . . . . . . . . Parts Melted . | . . . . . . . . . Heat Transferred . | . . . . . . . . . Parts Sabotaged . | . . . . . . . . . Parts Stolen . | . . . . . . . . . Parts Stripped . | . . . . . . . . . Power Chain Reactions . | . . . . . . . . . Missiles Intercepted . | . . . . . . . . . Alert | -11 -10 -9 -8 -8 -7 -7 -7 -6 ------- Run | Scr Mat Mat Mat Sto Fac DSF Gar Fac Peak Influence 203 | . 157 111 61 203 91 63 90 192 Initial 91 | . . 66 46 25 91 63 . 36 Average 60 | . 71 84 46 64 91 29 15 72 Maximum Alert Level 1 | . . . . 1 . . . . Low Security (%) 99 | 100 100 100 100 97 100 100 100 100 Level 1 . | . . . . 2 . . . . Level 2 . | . . . . . . . . . Level 3 . | . . . . . . . . . Level 4 . | . . . . . . . . . Level 5 . | . . . . . . . . . High Security . | . . . . . . . . . Max Security . | . . . . . . . . . Squads Dispatched 7 | . 1 1 . 2 . 2 . 1 Investigation 3 | . 1 . . 1 . . . 1 Extermination . | . . . . . . . . . Reinforcement 4 | . . 1 . 1 . 2 . . Assault . | . . . . . . . . . Garrison . | . . . . . . . . . Intercept . | . . . . . . . . . Searches Triggered . | . . . . . . . . . Construction Impeded . | . . . . . . . . . Haulers Reinforced . | . . . . . . . . . Active Scanning Responses . | . . . . . . . . . Cargo Convoy Interrupts . | . . . . . . . . . Stealth | -11 -10 -9 -8 -8 -7 -7 -7 -6 --------- Run | Scr Mat Mat Mat Sto Fac DSF Gar Fac Distress Signals 2 | . 1 . . 1 . . . . Communications Jammed . | . . . . . . . . . Distress Signals . | . . . . . . . . . Times Spotted 78 | . 13 5 3 19 . 9 14 15 Peak Tracking Total 12 | . 9 5 3 11 . 7 12 11 Tactical Retreats 10 | . 2 . . 4 . . 1 3 Traps | -11 -10 -9 -8 -8 -7 -7 -7 -6 ------- Run | Scr Mat Mat Mat Sto Fac DSF Gar Fac Traps Triggered 7 | . . . . 1 1 . 4 1 Indirectly . | . . . . . . . . . Trap Hack Attempts . | . . . . . . . . . Triggered . | . . . . . . . . . Disarmed . | . . . . . . . . . Reprogrammed . | . . . . . . . . . Reused . | . . . . . . . . . Traps Extracted . | . . . . . . . . . Installed . | . . . . . . . . . Triggered . | . . . . . . . . . Machines | -11 -10 -9 -8 -8 -7 -7 -7 -6 ---------- Run | Scr Mat Mat Mat Sto Fac DSF Gar Fac Machines Disabled . | . . . . . . . . . Max in Single Turn . | . . . . . . . . . Garrison Access 1 | . . . . . . . . 1 Machines Sabotaged . | . . . . . . . . . Garrisons Compromised . | . . . . . . . . . Overloaded Fab Kills . | . . . . . . . . . Hacking | -11 -10 -9 -8 -8 -7 -7 -7 -6 --------- Run | Scr Mat Mat Mat Sto Fac DSF Gar Fac Machines Accessed 15 | . 3 . . 5 1 . . 6 Terminals 13 | . 3 . . 5 1 . . 4 Fabricators 1 | . . . . . . . . 1 Repair Stations . | . . . . . . . . . Recycling Units . | . . . . . . . . . Scanalyzers . | . . . . . . . . . Garrison Access 1 | . . . . . . . . 1 Total Hacks 41 | . 13 . . 13 1 . . 14 Successful 23 | . 8 . . 4 1 . . 10 Failed 18 | . 5 . . 9 . . . 4 Catastrophic 6 | . 2 . . 3 . . . 1 Database Lockouts . | . . . . . . . . . Manual 28 | . 10 . . 11 . . . 7 Terminals 35 | . 13 . . 13 1 . . 8 Fabricators 5 | . . . . . . . . 5 Repair Stations . | . . . . . . . . . Recycling Units . | . . . . . . . . . Scanalyzers . | . . . . . . . . . Garrison Access 1 | . . . . . . . . 1 Terminal Hacks 12 | . 5 . . 4 1 . . 2 Record 2 | . 2 . . . . . . . Part Schematic 2 | . . . . 2 . . . . Open Door 2 | . . . . 2 . . . . Open DSF 2 | . . . . . 1 . . 1 Level Access Points 1 | . 1 . . . . . . . Terminal Index 2 | . 1 . . . . . . 1 Hauler Manifests 1 | . 1 . . . . . . . Fabricator Hacks 5 | . . . . . . . . 5 Network Status 1 | . . . . . . . . 1 Load Schematic 2 | . . . . . . . . 2 Build 2 | . . . . . . . . 2 Repair Station Hacks . | . . . . . . . . . Recycling Unit Hacks . | . . . . . . . . . Scanalyzer . | . . . . . . . . . Garrison Access Hacks 1 | . . . . . . . . 1 Seal Access 1 | . . . . . . . . 1 Unauthorized Hacks 5 | . 3 . . . . . . 2 Terminals 5 | . 3 . . . . . . 2 Botnet 5 | . 3 . . . . . . 2 Fabricators . | . . . . . . . . . Repair Stations . | . . . . . . . . . Recycling Units . | . . . . . . . . . Scanalyzers . | . . . . . . . . . Garrison Access . | . . . . . . . . . Data Cores Recovered . | . . . . . . . . . Used . | . . . . . . . . . Hacking Detections 9 | . 3 . . 3 . . . 3 Full Trace Events 5 | . 2 . . 2 . . . 1 Feedback Events . | . . . . . . . . . Feedback Blocked . | . . . . . . . . . Robot Schematics Acquired . | . . . . . . . . . Robots Built . | . . . . . . . . . Authchips . | . . . . . . . . . Time . | . . . . . . . . . Total Robot Build Rating . | . . . . . . . . . Part Schematics Acquired 2 | . . . . 2 . . . . Parts Built 2 | . . . . . . . . 2 Authchips 2 | . . . . . . . . 2 Time 72 | . . . . . . . . 72 Total Part Build Rating 6 | . . . . . . . . 6 Parts Repaired . | . . . . . . . . . Time . | . . . . . . . . . Parts Recycled . | . . . . . . . . . Recycled Matter . | . . . . . . . . . Retrieved Matter . | . . . . . . . . . Retrieved Components . | . . . . . . . . . Parts Scanalyzed . | . . . . . . . . . Part Schematics Acquired . | . . . . . . . . . Parts Damaged . | . . . . . . . . . Bothacking | -11 -10 -9 -8 -8 -7 -7 -7 -6 ------------ Run | Scr Mat Mat Mat Sto Fac DSF Gar Fac Used RIF Installer . | . . . . . . . . . Robots Hacked . | . . . . . . . . . Non-combat . | . . . . . . . . . Combat . | . . . . . . . . . Robot Hacks Applied . | . . . . . . . . . Relay Couplers Released . | . . . . . . . . . Fabnet Peak Effective % . | . . . . . . . . . Robots Rewired . | . . . . . . . . . Allies Hacked . | . . . . . . . . . Hacks Repelled . | . . . . . . . . . Allies | -11 -10 -9 -8 -8 -7 -7 -7 -6 -------- Run | Scr Mat Mat Mat Sto Fac DSF Gar Fac Total Allies . | . . . . . . . . . Largest Group . | . . . . . . . . . Highest-Rated Group . | . . . . . . . . . Highest-Rated Ally . | . . . . . . . . . Total Orders . | . . . . . . . . . Ally Attacks . | . . . . . . . . . Total Damage . | . . . . . . . . . Kills . | . . . . . . . . . Allies Corrupted . | . . . . . . . . . Allies Melted . | . . . . . . . . . Intel | -11 -10 -9 -8 -8 -7 -7 -7 -6 ------- Run | Scr Mat Mat Mat Sto Fac DSF Gar Fac Robot Analysis Total . | . . . . . . . . . Derelict Logs Recovered . | . . . . . . . . . Drone Launches . | . . . . . . . . . Drone Recoveries . | . . . . . . . . . Exploration | -11 -10 -9 -8 -8 -7 -7 -7 -6 ------------- Run | Scr Mat Mat Mat Sto Fac DSF Gar Fac Turns Passed 684 | 9 57 42 26 126 15 61 66 282 Spaces Moved 1663 | 18 132 97 67 366 40 120 95 728 Core 99 | 18 25 . . . . . . 56 Treads . | . . . . . . . . . Legs . | . . . . . . . . . Wheels . | . . . . . . . . . Hover . | . . . . . . . . . Flight 1564 | . 107 97 67 366 40 120 95 672 Fastest Speed 32 | 50 40 34 32 32 32 32 32 32 Average Speed 33 | 50 41 34 33 32 32 32 32 33 Slowest Speed 50 | 50 50 40 34 35 32 35 35 50 Overloaded Moves . | . . . . . . . . . Propulsion Burnouts . | . . . . . . . . . Robots Hopped 34 | . 1 4 . 19 . 7 2 1 Cave-ins Triggered . | . . . . . . . . . Exploration Rate (%) 31 | 2 39 13 12 69 3 92 40 17 Regions Visited 8 Branch Regions 1 Pre-discovered Areas . | . . . . . . . . . Known Exits Taken 3 | . 1 . . 1 1 . . . Unknown Exits Taken 3 | 1 . 1 1 . . . . . Scrap Searched . | . . . . . . . . . Spaces Dug . | . . . . . . . . . Terrain Destroyed . | . . . . . . . . . Melee . | . . . . . . . . . Projectile . | . . . . . . . . . AOE . | . . . . . . . . . Terrain Rammed . | . . . . . . . . . Walls Destroyed . | . . . . . . . . . Machines Disabled . | . . . . . . . . . Actions | -11 -10 -9 -8 -8 -7 -7 -7 -6 --------- Run | Scr Mat Mat Mat Sto Fac DSF Gar Fac Total 1730 | 17 131 98 69 353 41 131 126 764 Wait 9 | . . . . . . 2 . 7 Move 1592 | 17 129 88 67 330 39 106 90 726 Hop 30 | . 1 4 . 16 . 6 2 1 Pick Up 14 | . . . . 2 . 6 . 6 Fast Attach 22 | . 1 5 1 3 1 7 . 4 Attach 10 | . . . . 2 . 3 . 5 Detach 1 | . . . . . . 1 . . Swap 2 | . . . 1 . . . 1 . Drop 4 | . . 1 . . 1 . . 2 Fire . | . . . . . . . . . Melee . | . . . . . . . . . Ram . | . . . . . . . . . Kick . | . . . . . . . . . Crush . | . . . . . . . . . Escape Stasis 46 | . . . . . . . 33 13 Rewire . | . . . . . . . . . Trap . | . . . . . . . . . Miscellaneous . | . . . . . . . . . Route ------- -11/Scrapyard -10/Materials (discovered 3 exits: *Mat x3) -9/Materials -8/Materials -8/Storage -7/Factory -7/DSF -7/Garrison -6/Factory History --------- Turn | Location | Event 3 | -11/Scrapyard | Discovered new exit (range 15) 10 | -11/Scrapyard | Entered Materials 53 | -10/Materials | Identified exit to Materials 67 | -10/Materials | Entered another Materials area 67 | -9/Materials | Evolved 2 slots: Utility x2 105 | -9/Materials | Discovered new exit (range 11) 109 | -9/Materials | Entered another Materials area 109 | -8/Materials | Evolved 2 slots: Utility x2 133 | -8/Materials | Discovered new exit (range 4) 135 | -8/Materials | Entered Storage 209 | -8/Storage | Lost 4 parts (1p2n1u) 257 | -8/Storage | Discovered new exit (range 15) 261 | -8/Storage | Identified exit to Factory 261 | -8/Storage | Entered Factory 261 | -7/Factory | Evolved 2 slots: Propulsion x1, Utility x1 276 | -7/Factory | Identified exit to DSF 276 | -7/Factory | Entered DSF 293 | -7/DSF | Additional patrols routed to DSF 326 | -7/DSF | Core integrity fell below 50% 330 | -7/DSF | Discovered new exit (range 13) 337 | -7/DSF | Entered Garrison 352 | -7/Garrison | Triggered checkpoint 355 | -7/Garrison | Lost 7 parts (4n2u1w) 400 | -7/Garrison | Discovered new exit (range 8) 403 | -7/Garrison | Entered Factory 403 | -6/Factory | Evolved 2 slots: Propulsion x1, Utility x1 430 | -6/Factory | Lost 3 parts (1p2n) 474 | -6/Factory | Fabricated Hacking Suite (x1) 513 | -6/Factory | Fabricated System Shield? 685 | -6/Factory | Self-destructed Last Messages --------------- 00593_ K-01 Serf cleans the Power Conduit. 00595_ K-01 Serf collects debris. 00604_ Connecting with Terminal... >>Trojan(Botnet) Trojan loaded successfully. Testing... Terminal linked with 1 system. Awaiting botnet instructions. 00604_ ALERT: Suspicious activity at Terminal F018. Dispatching Investigation squad. 00609_ Connecting with DSF Access... 00623_ K-01 Serf collects debris. 00624_ C-30 ARC bursts open, deploying its payload. 00624_ S-27 Virus unfolds itself. 00624_ U-05 Engineer destroyed. 00647_ Xenon Bombardment Thruster destroyed. 00655_ Dropped Lgt. Fission Core. 00657_ Imp. VTOL Module destroyed. 00683_ Imp. Targeting Computer destroyed. 00685_ Hacking Suite destroyed. Map ----- +----------------------------------------------------+ | ?????????????????????????????????????????????????? | | ?????????????????????????????????????????????????? | | ?????????????????????????????????????????????????? | | ?????????????????????????????????????????????????? | | ?????????????????????????????????????????????????? | | ??????????##?????##??????????????????????????????? | | ????????? ???? !#??????????????????????????????? | | ?????#???"" ??? /??????????????????????????????? | | ?????# """ """ #??????????????????????????????? | | ?????# """ """ #??????????????????????????????? | | ?????# #??????????????????????????????? | | ?????# """ """ #??????????????????????????????? | | ?????# """ """ #???#######????????????????????? | | ?????# """ """ #???# ????????????????????? | | ?????# ! #???# ????????????????????? | | ?????? #???# """???????????????????? | | ###????? ?????# """???????????????????? | | #??????? ???????# """""?????????????????? | | ##########+####+##### """""?????????????????? | | # ^"""T""" ^ ^ #= ?????????????????? | | # ^ # A """"""????????????????? | | # ^""" """ ||^ / = """"""????????????????? | | + """ """ |! # """""?????????????????? | | # """ """ |! # """???????????????????? | | # # ?????????????????????? | | # ###@###########????????????? | | # #????????????? | | # #????????????? | | # ^ #????????????? | | ### """""""""^""""""""" """"""""" #????????????? | | ??# #????????????? | | ??# """"""""" """"""""" """"""""" #????????????? | | ??# w #????????????? | | ??# " " """"""""" """"""""" R ???????????? | | ??# " " ? ??????????? | | ??# ""G"" """"""""" """"""""????????????????? | | ??# ????????????????? | | ??# ????????????????? | | ??# ####+###############?????????????????????? | | ??# #? #???????????????????????????? | | ??# # #???????????????????????????? | | ??# # #???????????????????????????? | | ??# # #???????????????????????????? | | ??# + #???????????????????????????? | | ??# # #???????????????????????????? | | ??# # #???????????????????????????? | | ### # #???????????????????????????? | | # #???????????????????????????? | | ^ # #???????????????????????????? | | # #???????????????????????????? | +----------------------------------------------------+ Best States ------------- Heat Dissipation 37 Energy Generation 18 Energy Capacity 280 Matter Stores 218 Matter Capacity 300 Sight Range 20 Terrain Scan Density 10 Evasion (%) 63 Targeting Accuracy 12 Offensive Hacking 10 Authchip Count 2 Item Schematics ----------------- Hacking Suite | -8/Storage | Hacked System Shield | -8/Storage | Hacked Robot Schematics ------------------ None Fabricated ------------ Hacking Suite | x1 | -6/Factory | Authchip System Shield | x1 | -6/Factory | Authchip Alien Tech Used ----------------- None Achievements -------------- None Challenges ------------ None Game ------ Seed NetworkCombatMace Manual? 0 Play Time 00:24:13 Cumulative 168.4 hours Start 2022.05.03 @ 01:14:50 End 2022.05.03 @ 01:37:05 Sessions 1 Manual Loads 0 Difficulty Rogue Special Mode None Game No. 282 Rogue 281 Adventurer 0 Explorer 1 Win Type - Total 7 Types 7/0/0/0/0/0/0/0/0 Lore% 61 Gallery% 64 Achievement% 53 Wizard Run 0 Options --------- ASCII 1 Keyboard 0 Movement Vi Keybinds 0 Fullscreen 1 Font 18/SmallcapsGlow Map View 76x50 Tactical HUD 1 Map Filters NONE Filters NONE Steam 1 RUN: feda9a50-bc1b-4f24-8708-0651feb68959